bitfinex-derivatives/quotes_BTCF0:USTF0_20241009
["timestamp","ask_amount","ask_price","bid_price","bid_amount"]
[1728482269490,0.87908305,61893.0,61892.0,0.001]
[1728482271692,0.847845,61893.0,61892.0,0.001]
[1728482273386,1.932565,61893.0,61892.0,0.001]
[1728482273604,0.270859,61882.0,61875.0,0.084668]
[1728482273799,0.080866,61877.0,61876.0,0.097037]
[1728482274091,1.890866,61877.0,61876.0,0.097037]
[1728482274495,1.890866,61877.0,61876.0,0.01617]
[1728482274715,0.080877,61868.0,61867.0,0.08330219]
[1728482274900,0.370877,61868.0,61867.0,0.00242419]
[1728482277491,0.377877,61868.0,61867.0,0.00242419]
[1728482277903,0.080883,61864.0,61857.0,0.3608]
[1728482278221,0.19,61863.0,61862.0,0.080885]
[1728482278397,0.3,61863.0,61862.0,0.080885]
[1728482279299,0.3,61863.0,61857.0,0.002]
[1728482279492,0.19,61858.0,61857.0,0.002]
[1728482279715,0.38089,61858.0,61857.0,0.002]
[1728482280317,0.38089,61858.0,61857.0,0.005]
[1728482280491,1.88089,61858.0,61857.0,0.005]
[1728482280703,1.88089,61858.0,61857.0,0.003]
[1728482280895,0.080897,61854.0,61852.0,0.080898]
[1728482281112,0.270897,61853.0,61852.0,0.080898]
[1728482281306,0.390897,61853.0,61852.0,0.080898]
[1728482281511,0.31,61853.0,61848.0,0.00242495]
[1728482281815,0.080901,61850.0,61849.0,0.080902]
[1728482282199,0.19,61853.0,61852.0,0.080898]
[1728482282443,0.370897,61853.0,61852.0,0.080898]
[1728482283504,0.370897,61853.0,61852.0,0.081898]
[1728482284708,0.371897,61853.0,61852.0,0.083898]
[1728482290801,0.291,61853.0,61852.0,0.083898]
[1728482291038,0.371897,61853.0,61852.0,0.083898]
[1728482296013,0.101,61853.0,61852.0,0.273898]
[1728482296320,0.0038,61865.0,61852.0,0.678]
[1728482296504,0.11,61865.0,61860.0,0.3608]
[1728482296705,0.080885,61863.0,61862.0,0.080884]
[1728482296906,0.190885,61863.0,61862.0,0.080884]
[1728482297105,0.380885,61863.0,61862.0,0.080884]
[1728482297618,0.3,61863.0,61855.0,0.36236]
[1728482297817,0.080887,61861.0,61859.0,0.080889]
[1728482298013,0.11,61861.0,61860.0,0.080888]
[1728482298404,0.002,61863.0,61862.0,0.080885]
[1728482299704,0.001,61863.0,61862.0,0.080885]
[1728482299907,0.002,61863.0,61862.0,0.080885]
[1728482300214,0.001,61863.0,61862.0,0.080885]
[1728482300523,0.001,61863.0,61862.0,0.085885]
[1728482301013,0.002,61863.0,61862.0,0.089885]
[1728482301220,1.502,61863.0,61862.0,0.089885]
[1728482301916,1.502,61863.0,61862.0,0.279885]
[1728482302507,0.002,61863.0,61862.0,0.279885]
[1728482303215,0.002,61863.0,61862.0,0.089885]
[1728482303901,0.002,61863.0,61862.0,0.279885]
[1728482304419,0.0075,61880.0,61874.0,0.08087]
[1728482304709,0.02,61875.0,61874.0,0.27087]
[1728482304909,0.02,61875.0,61874.0,0.08087]
[1728482305325,0.08087,61874.0,61873.0,0.0756]
[1728482305507,0.11,61874.0,61872.0,0.080871]
[1728482305711,0.080871,61873.0,61872.0,0.080871]
[1728482305916,1.5,61875.0,61867.0,0.3608]
[1728482306211,1.700868,61875.0,61874.0,0.08087]
[1728482306612,1.700868,61875.0,61874.0,0.08187]
[1728482306815,1.704868,61875.0,61874.0,0.08187]
[1728482307313,0.124,61875.0,61874.0,0.08187]
[1728482308916,0.204868,61875.0,61874.0,0.08187]
[1728482311318,0.124,61875.0,61874.0,0.08187]
[1728482311813,0.204868,61875.0,61874.0,0.08187]
[1728482312713,0.124,61875.0,61874.0,0.08187]
[1728482321132,0.204868,61875.0,61874.0,0.08187]
[1728482321319,0.124,61875.0,61874.0,0.08187]
[1728482321737,0.204868,61875.0,61874.0,0.08187]
[1728482321975,0.124,61875.0,61874.0,0.08187]
[1728482330437,0.15524282,61875.0,61874.0,0.08187]
[1728482331932,0.124,61875.0,61874.0,0.08187]
[1728482339829,0.15524282,61875.0,61874.0,0.08187]
[1728482340239,0.23611082,61875.0,61874.0,0.08187]
[1728482343532,0.15524282,61875.0,61874.0,0.08187]
[1728482345141,0.23611082,61875.0,61874.0,0.08187]
[1728482345658,0.23611082,61875.0,61868.0,0.080875]
[1728482345659,0.080878,61869.0,61868.0,0.080875]
[1728482345831,0.23212082,61869.0,61868.0,0.080875]
[1728482346466,0.23211882,61869.0,61868.0,0.080875]
[1728482346641,0.19085449,61869.0,61868.0,0.080875]
[1728482346841,0.12,61869.0,61868.0,0.080875]
[1728482347038,0.15124537,61869.0,61868.0,0.083875]
[1728482347230,0.15124537,61869.0,61868.0,0.087875]
[1728482347435,0.121,61869.0,61868.0,0.087875]
[1728482347737,0.121,61869.0,61868.0,0.572755]
[1728482347738,0.001,61869.0,61868.0,0.572755]
[1728482348546,0.01114603,61880.0,61873.0,0.080871]
[1728482348740,0.0312415,61879.0,61876.0,0.3608]
[1728482348941,0.0312415,61878.0,61877.0,0.080866]
[1728482349137,0.1412415,61878.0,61877.0,0.080866]
[1728482350337,0.1482415,61878.0,61877.0,0.081866]
[1728482350737,0.1502415,61878.0,61877.0,0.081866]
[1728482354845,0.2394947,61878.0,61877.0,0.081866]
[1728482355142,0.18984917,61878.0,61877.0,0.081866]
[1728482355347,0.1898493,61878.0,61877.0,0.081866]
[1728482358553,0.23949385,61878.0,61877.0,0.081866]
[1728482359346,0.1898493,61878.0,61877.0,0.081866]
[1728482360363,2.8e-07,61878.0,61877.0,1.166706]
[1728482360566,0.00242444,61888.0,61887.0,0.080853]
[1728482360887,0.00242444,61888.0,61887.0,1.116413]
[1728482361072,0.17717025,61892.0,61891.0,0.080847]
[1728482361368,0.16106386,61899.0,61891.0,0.080847]
[1728482361369,0.14509632,61903.0,61897.0,0.080839]
[1728482361559,0.161658,61906.0,61905.0,0.080829]
[1728482361868,0.161658,61906.0,61901.0,0.441633]
[1728482361869,0.080833,61902.0,61901.0,0.441633]
[1728482362057,0.380833,61902.0,61901.0,0.3608]
[1728482363545,0.08084,61897.0,61896.0,0.08084]
[1728482363748,1.8,61897.0,61891.0,0.3608]
[1728482364053,0.270846,61892.0,61891.0,0.441647]
[1728482364456,0.080846,61892.0,61891.0,0.441647]
[1728482365684,0.370846,61892.0,61891.0,0.001]
[1728482366052,1.816366,61892.0,61891.0,0.001]
[1728482366548,1.816366,61892.0,61891.0,0.002]
[1728482366549,1.818366,61892.0,61891.0,0.002]
[1728482366749,0.080855,61885.0,61884.0,0.00242361]
[1728482366970,0.080863,61880.0,61879.0,0.080862]
[1728482367255,0.200863,61880.0,61879.0,0.080862]
[1728482367573,0.200863,61880.0,61877.0,0.01618]
[1728482367574,0.080864,61878.0,61877.0,0.01618]
[1728482367763,0.080868,61875.0,61874.0,0.080869]
[1728482367951,0.080871,61873.0,61871.0,0.080873]
[1728482368151,0.270872,61872.0,61871.0,0.080873]
[1728482368353,0.380872,61872.0,61871.0,0.080873]
[1728482369863,0.383872,61872.0,61871.0,0.080873]
[1728482370567,0.33124673,61872.0,61871.0,0.084873]
[1728482370895,0.3,61872.0,61871.0,0.084873]
[1728482371163,0.11,61872.0,61871.0,0.086873]
[1728482371362,0.0795,61874.0,61873.0,0.080871]
[1728482371572,0.19098574,61874.0,61873.0,0.080871]
[1728482372062,0.1795,61874.0,61873.0,0.080871]
[1728482372773,0.1795,61874.0,61873.0,0.002]
[1728482372959,0.29361618,61874.0,61873.0,0.002]
[1728482373162,0.080879,61867.0,61866.0,0.00242432]
[1728482373359,0.77292518,61867.0,61866.0,0.00242432]
[1728482374669,0.741679,61867.0,61866.0,0.00242432]
[1728482375057,2.241679,61867.0,61866.0,0.00242432]
[1728482375855,2.241679,61867.0,61866.0,0.00442432]
[1728482376066,2.242679,61867.0,61866.0,0.00442432]
[1728482376263,2.242679,61867.0,61866.0,0.00942432]
[1728482376759,2.27392985,61867.0,61866.0,0.00942432]
[1728482377157,2.242679,61867.0,61866.0,0.00942432]
[1728482378371,2.25381433,61867.0,61866.0,0.00942432]
[1728482381761,2.28506697,61867.0,61866.0,0.00942432]
[1728482381965,0.080893,61856.0,61855.0,0.0038]
[1728482382163,0.080893,61856.0,61850.0,0.09708]
[1728482382164,0.390893,61856.0,61850.0,0.09708]
[1728482382375,0.19,61851.0,61850.0,0.09708]
[1728482382666,0.29,61851.0,61850.0,0.09708]
[1728482383572,0.29,61851.0,61850.0,0.10108]
[1728482383973,0.29,61851.0,61850.0,0.09708]
[1728482384181,0.29,61851.0,61850.0,0.10108]
[1728482385072,0.3709,61851.0,61850.0,0.004]
[1728482385974,1.8709,61851.0,61850.0,0.004]
[1728482386477,1.8709,61851.0,61849.0,0.080902]
[1728482386683,0.270901,61850.0,61849.0,0.080902]
[1728482386973,0.080905,61847.0,61843.0,0.3608]
[1728482387179,0.19,61845.0,61841.0,0.01140596]
[1728482387374,0.19,61845.0,61843.0,0.08091]
[1728482387375,1.5,61844.0,61843.0,0.08091]
[1728482387674,1.6,61844.0,61843.0,0.08091]
[1728482389179,1.680909,61844.0,61843.0,0.08091]
[1728482389377,1.681909,61844.0,61843.0,0.08991]
[1728482390479,0.182909,61844.0,61843.0,0.08991]
[1728482391979,0.102,61844.0,61843.0,0.08991]
[1728482392281,0.182909,61844.0,61843.0,0.08991]
[1728482396076,0.182909,61844.0,61843.0,0.009]
[1728482396281,0.182909,61844.0,61843.0,0.08991]
[1728482397485,0.183909,61844.0,61843.0,0.08991]
[1728482397987,0.183909,61844.0,61843.0,0.009]
[1728482398285,0.182909,61844.0,61843.0,0.009]
[1728482398511,0.080911,61842.0,61841.0,0.080912]
[1728482398698,0.370911,61842.0,61841.0,0.080912]
[1728482399393,0.1,61842.0,61841.0,0.080912]
[1728482399989,0.103,61842.0,61841.0,0.080912]
[1728482400283,0.3,61842.0,61841.0,0.081912]
[1728482400885,0.3,61842.0,61841.0,0.13037351]
[1728482401483,0.3,61842.0,61841.0,0.081912]
[1728482403392,0.11,61842.0,61841.0,0.081912]
[1728482405707,0.11,61842.0,61841.0,0.13035033]
[1728482406193,0.11,61842.0,61841.0,0.081912]
[1728482407587,0.11,61842.0,61841.0,0.13035854]
[1728482407788,0.11,61842.0,61841.0,0.12235854]
[1728482408699,0.11,61842.0,61841.0,0.073912]
[1728482409890,0.11,61842.0,61841.0,0.13852734]
[1728482410099,0.11,61842.0,61841.0,0.073912]
[1728482410504,0.11,61842.0,61841.0,0.13852734]
[1728482410793,0.190911,61842.0,61841.0,0.073912]
[1728482412503,0.11,61842.0,61841.0,0.13852734]
[1728482412891,0.11,61842.0,61841.0,0.073912]
[1728482413602,0.190911,61842.0,61841.0,0.073912]
[1728482415216,0.11,61842.0,61841.0,0.073912]
[1728482419800,0.1412583,61842.0,61841.0,0.073912]
[1728482420998,0.190911,61842.0,61841.0,0.073912]
[1728482421963,0.26180147,61842.0,61841.0,0.073912]
[1728482422446,0.26180147,61842.0,61841.0,0.001]
[1728482422612,0.26180147,61842.0,61836.0,0.3608]
[1728482422613,0.31147502,61842.0,61836.0,0.3608]
[1728482422822,0.31147502,61842.0,61836.0,0.441719]
[1728482422823,0.22597193,61837.0,61836.0,0.441719]
[1728482423007,0.30148202,61837.0,61836.0,0.441719]
[1728482423225,0.44648656,61837.0,61836.0,0.441719]
[1728482423709,0.25181467,61837.0,61836.0,0.441719]
[1728482424900,0.080919,61836.0,61833.0,0.080922]
[1728482425126,0.41591698,61834.0,61833.0,0.080922]
[1728482425326,0.49149762,61834.0,61833.0,0.080922]
[1728482425528,1.94181967,61834.0,61833.0,0.080922]
[1728482425699,1.99150161,61834.0,61833.0,0.080922]
[1728482425893,1.99150191,61834.0,61833.0,0.080922]
[1728482426206,2.13633367,61834.0,61833.0,0.080922]
[1728482426605,1.99150191,61834.0,61833.0,0.080922]
[1728482426902,2.4981277,61834.0,61833.0,0.080922]
[1728482427108,2.2272047,61834.0,61833.0,0.080922]
[1728482427301,2.27237891,61834.0,61833.0,0.080922]
[1728482427497,2.30361867,61834.0,61833.0,0.080922]
[1728482427998,1.94281867,61834.0,61833.0,0.080922]
[1728482428307,1.94281867,61834.0,61833.0,0.081922]
[1728482428505,1.95395596,61834.0,61833.0,0.081922]
[1728482429706,1.87303396,61834.0,61833.0,0.081922]
[1728482429910,1.95395596,61834.0,61833.0,0.081922]
[1728482430110,1.88305929,61834.0,61833.0,0.081922]
[1728482439915,2.24385929,61834.0,61833.0,0.081922]
[1728482440420,2.17385929,61834.0,61833.0,0.001]
[1728482440621,0.080932,61826.0,61824.0,0.01618]
[1728482440838,0.080934,61825.0,61824.0,0.01618]
[1728482441125,0.180934,61825.0,61824.0,0.01618]
[1728482442121,0.08094,61821.0,61820.0,0.08094]
[1728482442319,0.31094,61821.0,61820.0,0.08094]
[1728482442635,0.31094,61821.0,61817.0,0.3622]
[1728482442833,0.31094,61821.0,61818.0,0.08336943]
[1728482442834,0.080941,61819.0,61818.0,0.08336943]
[1728482443015,0.190941,61819.0,61818.0,0.00242643]
[1728482443603,0.190941,61819.0,61818.0,0.080943]
[1728482443811,0.190941,61819.0,61815.0,0.080947]
[1728482444010,0.200945,61816.0,61815.0,0.080947]
[1728482444212,0.310945,61816.0,61815.0,0.080947]
[1728482444427,0.380945,61816.0,61815.0,0.080947]
[1728482444911,0.3,61816.0,61815.0,0.080947]
[1728482445332,0.302,61816.0,61815.0,0.080947]
[1728482448533,0.002,61816.0,61815.0,0.441747]
[1728482448737,0.3608,61821.0,61816.0,0.080945]
[1728482448934,0.01,61821.0,61820.0,0.27094]
[1728482449313,0.080927,61830.0,61825.0,0.080934]
[1728482449510,0.46484,61826.0,61825.0,0.080934]
[1728482449715,0.4608,61826.0,61825.0,0.080934]
[1728482450429,0.00404,61827.0,61825.0,1.27524]
[1728482450614,0.00404,61827.0,61826.0,0.270932]
[1728482450815,0.00404,61827.0,61826.0,0.756172]
[1728482451016,0.3632267,61834.0,61826.0,1.356172]
[1728482451213,0.3632267,61834.0,61833.0,0.080923]
[1728482451214,0.4632267,61834.0,61833.0,0.080923]
[1728482451418,0.3632267,61834.0,61833.0,0.080923]
[1728482451742,0.00404,61835.0,61833.0,1.526883]
[1728482451934,0.0038,61846.0,61834.0,0.67516]
[1728482452145,0.3608,61847.0,61846.0,0.080906]
[1728482453253,0.00041,61849.0,61846.0,0.680906]
[1728482453560,0.0793,61867.0,61858.0,0.08089]
[1728482453743,0.0793,61867.0,61866.0,0.08088]
[1728482453942,0.00167671,61871.0,61865.0,0.3608]
[1728482454234,1.770876,61870.0,61869.0,0.080875]
[1728482454544,1.69,61870.0,61869.0,0.080875]
[1728482455036,0.00167671,61871.0,61870.0,0.080875]
[1728482455352,0.01067671,61871.0,61870.0,0.080875]
[1728482455543,0.01067671,61871.0,61870.0,1.165755]
[1728482455920,0.01567671,61871.0,61870.0,1.165755]
[1728482456123,0.01567671,61871.0,61870.0,0.080875]
[1728482456622,0.01067671,61871.0,61870.0,0.080875]
[1728482456925,0.00167671,61871.0,61870.0,0.080875]
[1728482457120,0.00167671,61871.0,61870.0,1.165755]
[1728482457340,0.00167671,61871.0,61870.0,0.565755]
[1728482457624,0.00367671,61871.0,61870.0,0.080875]
[1728482462930,0.08454971,61871.0,61870.0,0.080875]
[1728482463250,0.080879,61867.0,61866.0,0.3608]
[1728482463425,0.380879,61867.0,61866.0,0.3608]
[1728482464435,0.381879,61867.0,61866.0,0.3608]
[1728482464829,0.381879,61867.0,61866.0,0.3628]
[1728482465042,0.381879,61867.0,61866.0,0.002]
[1728482465656,1.881879,61867.0,61866.0,0.002]
[1728482465843,1.892966,61867.0,61866.0,0.002]
[1728482466531,1.891966,61867.0,61866.0,0.002]
[1728482467235,0.08088,61866.0,61863.0,0.080884]
[1728482467435,0.19088,61866.0,61863.0,0.080884]
[1728482468222,0.080882,61865.0,61863.0,0.080884]
[1728482468436,0.190882,61865.0,61863.0,0.080884]
[1728482470127,0.190882,61865.0,61859.0,0.080889]
[1728482470330,0.19,61860.0,61859.0,0.080889]
[1728482470568,0.3,61860.0,61859.0,0.080889]
[1728482471535,0.3,61860.0,61859.0,0.083889]
[1728482472542,0.48496,61859.0,61844.0,0.0038]
[1728482472854,0.48496,61859.0,61846.0,0.441705]
[1728482472855,0.270905,61847.0,61846.0,0.441705]
[1728482473046,0.380905,61847.0,61846.0,0.3608]
[1728482473234,1.880905,61847.0,61846.0,0.3608]
[1728482473859,1.89208978,61847.0,61846.0,0.3608]
[1728482474435,1.89208978,61847.0,61846.0,0.3618]
[1728482475130,1.89408978,61847.0,61846.0,0.3608]
[1728482475352,1.81318478,61847.0,61838.0,0.01618]
[1728482475639,1.70408978,61847.0,61846.0,0.080906]
[1728482476042,0.002,61847.0,61846.0,0.441706]
[1728482476635,0.003,61847.0,61846.0,0.441706]
[1728482476833,0.003,61847.0,61846.0,0.926786]
[1728482477146,0.003,61847.0,61846.0,1.716786]
[1728482477350,0.002,61847.0,61846.0,1.716786]
[1728482479048,0.0725,61859.0,61846.0,1.716786]
[1728482479049,0.00622584,61860.0,61859.0,0.080889]
[1728482479359,0.00242584,61860.0,61859.0,0.270889]
[1728482479735,0.00242584,61860.0,61859.0,1.355849]
[1728482480135,0.00342584,61860.0,61859.0,1.355849]
[1728482480334,0.00342584,61860.0,61859.0,1.358849]
[1728482480944,0.00342584,61860.0,61859.0,0.873889]
[1728482481144,0.00342584,61860.0,61859.0,1.358849]
[1728482481452,0.00442584,61860.0,61859.0,1.361849]
[1728482482043,0.002,61860.0,61859.0,1.361849]
[1728482482440,0.002,61860.0,61859.0,0.761849]
[1728482482850,0.002,61860.0,61859.0,1.361849]
[1728482483362,0.03324849,61860.0,61859.0,1.361849]
[1728482483953,0.002,61860.0,61859.0,1.361849]
[1728482484157,0.0038,61873.0,61859.0,1.28096]
[1728482484414,0.0038,61876.0,61875.0,0.080868]
[1728482484564,0.16106386,61878.0,61877.0,0.080866]
[1728482484757,0.19230357,61878.0,61877.0,1.041666]
[1728482485054,0.03123971,61878.0,61877.0,1.526506]
[1728482485382,1.5,61883.0,61877.0,1.526506]
[1728482485569,0.00242447,61884.0,61883.0,0.080858]
[1728482485758,0.00242447,61884.0,61883.0,0.680858]
[1728482485759,0.03123655,61884.0,61883.0,0.680858]
[1728482486061,1.5,61895.0,61894.0,0.080843]
[1728482486242,1.65167561,61895.0,61894.0,0.080843]
[1728482487144,1.65167575,61895.0,61894.0,0.080843]
[1728482487344,1.61207742,61895.0,61894.0,0.080843]
[1728482487551,1.62107742,61895.0,61894.0,0.081843]
[1728482487868,1.91107742,61895.0,61894.0,0.001]
[1728482488073,0.08085,61890.0,61887.0,0.080852]
[1728482488255,0.080851,61888.0,61887.0,0.080852]
[1728482488449,0.11208642,61888.0,61887.0,0.080852]
[1728482489246,0.200851,61888.0,61887.0,0.080852]
[1728482489456,0.200851,61888.0,61883.0,0.081857]
[1728482489457,0.080856,61884.0,61883.0,0.081857]
[1728482489776,0.42209285,61884.0,61883.0,0.001]
[1728482490263,0.080868,61875.0,61874.0,0.0038]
[1728482490456,0.080868,61875.0,61874.0,0.08087]
[1728482490751,0.19,61878.0,61868.0,0.01617]
[1728482490991,0.080876,61869.0,61868.0,0.01617]
[1728482491649,0.080876,61869.0,61868.0,0.097047]
[1728482491855,0.080876,61869.0,61868.0,0.01617]
[1728482492701,0.2643,61874.0,61868.0,0.097047]
[1728482492978,0.3608,61875.0,61874.0,0.08087]
[1728482493146,0.08086,61882.0,61880.0,0.080862]
[1728482493344,1.6993,61881.0,61880.0,0.080862]
[1728482493546,1.78016,61881.0,61880.0,0.080862]
[1728482494546,1.78016,61881.0,61880.0,0.081862]
[1728482495442,1.6993,61881.0,61880.0,0.081862]
[1728482496052,1.6993,61881.0,61880.0,0.080862]
[1728482496247,1.7043,61881.0,61880.0,0.080862]
[1728482496855,1.78516,61881.0,61880.0,0.080862]
[1728482497051,1.78616,61881.0,61880.0,0.080862]
[1728482497453,1.81540127,61881.0,61880.0,0.080862]
[1728482497650,1.73454127,61881.0,61880.0,0.080862]
[1728482498155,1.77514695,61881.0,61876.0,0.080866]
[1728482498352,0.07084695,61880.0,61873.0,0.3608]
[1728482498555,0.19084695,61880.0,61879.0,0.080863]
[1728482498757,0.27170895,61880.0,61879.0,0.080863]
[1728482499353,0.19084695,61880.0,61879.0,0.080863]
[1728482500053,0.19084707,61880.0,61879.0,0.080863]
[1728482500684,0.19084792,61880.0,61879.0,0.080863]
[1728482501062,0.15124167,61880.0,61879.0,0.080863]
[1728482501246,0.19084765,61880.0,61879.0,0.270863]
[1728482501647,0.19284765,61880.0,61879.0,0.270863]
[1728482501854,0.19284765,61880.0,61879.0,0.080863]
[1728482502259,0.19184765,61880.0,61879.0,0.080863]
[1728482502449,0.19184765,61880.0,61879.0,0.270863]
[1728482502671,0.001,61880.0,61879.0,0.631663]
[1728482503560,1.5,61887.0,61886.0,0.080854]
[1728482503759,1.62,61887.0,61886.0,0.080854]
[1728482503955,0.12,61887.0,61886.0,0.080854]
[1728482504384,0.15959922,61887.0,61886.0,0.080854]
[1728482505456,0.12,61887.0,61886.0,0.080854]
[1728482507872,0.121,61887.0,61886.0,0.080854]
[1728482510475,0.001,61887.0,61886.0,1.165614]
[1728482511473,0.001,61887.0,61886.0,0.080854]
[1728482511870,0.111,61887.0,61886.0,0.080854]
[1728482512571,0.20023172,61887.0,61886.0,0.080854]
[1728482513465,0.3703174,61887.0,61886.0,0.05770572]
[1728482513663,0.080854,61886.0,61885.0,0.3608]
[1728482513975,0.4567184,61886.0,61885.0,0.3608]
[1728482514876,0.4577184,61886.0,61885.0,0.3608]
[1728482515387,0.4577184,61886.0,61879.0,0.3608]
[1728482515388,0.080855,61885.0,61879.0,0.3608]
[1728482515675,0.080861,61883.0,61882.0,0.080858]
[1728482515970,0.3793254,61883.0,61882.0,0.080858]
[1728482516374,0.080862,61880.0,61879.0,0.3608]
[1728482516570,0.32132899,61880.0,61879.0,0.441663]
[1728482516770,0.3793264,61880.0,61879.0,0.441663]
[1728482518668,0.3833264,61880.0,61879.0,0.441663]
[1728482519180,0.3823264,61880.0,61879.0,0.441663]
[1728482520364,0.23509727,61880.0,61879.0,0.441663]
[1728482520573,0.15423527,61880.0,61879.0,0.441663]
[1728482521274,0.23209727,61880.0,61879.0,0.441663]
[1728482521611,0.080864,61878.0,61877.0,0.080865]
[1728482521958,0.080864,61878.0,61870.0,0.097044]
[1728482521959,0.08087,61874.0,61870.0,0.01617]
[1728482522070,0.080873,61871.0,61867.0,0.080878]
[1728482522281,0.080879,61868.0,61867.0,0.080878]
[1728482522484,0.080883,61865.0,61864.0,0.08088]
[1728482522697,0.2404917,61865.0,61856.0,0.01617]
[1728482522996,0.080892,61857.0,61856.0,0.01617]
[1728482523221,0.080892,61857.0,61850.0,0.080901]
[1728482523222,0.0809,61851.0,61850.0,0.080901]
[1728482523395,0.0809,61851.0,61847.0,0.01117777]
[1728482523396,0.080903,61849.0,61847.0,0.080904]
[1728482523597,0.080903,61849.0,61840.0,0.01617]
[1728482523598,0.631704,61848.0,61840.0,0.01617]
[1728482523798,0.3608,61843.0,61842.0,0.080911]
[1728482524094,0.4708,61843.0,61842.0,0.080911]
[1728482525209,0.4708,61843.0,61840.0,0.01617]
[1728482525400,0.4708,61843.0,61835.0,0.0484433]
[1728482525401,0.080915,61839.0,61835.0,0.0484433]
[1728482525705,0.190915,61839.0,61835.0,0.1293623]
[1728482526139,1.690915,61839.0,61835.0,0.0484433]
[1728482526298,0.080918,61838.0,61835.0,0.0484433]
[1728482526498,0.3608,61836.0,61835.0,0.0484433]
[1728482526719,0.4708,61836.0,61835.0,0.0484433]
[1728482527597,0.4708,61836.0,61835.0,0.1293643]
[1728482527998,0.551719,61836.0,61835.0,0.1293643]
[1728482528298,0.556719,61836.0,61835.0,0.1293643]
[1728482528494,0.557719,61836.0,61835.0,0.1293643]
[1728482528718,0.557719,61836.0,61835.0,0.080921]
[1728482528719,0.4768,61836.0,61835.0,0.080921]
[1728482528907,0.4718,61836.0,61835.0,0.080921]
[1728482529251,0.4738,61836.0,61835.0,0.080921]
[1728482529707,0.4758,61836.0,61835.0,0.080921]
[1728482531342,0.4718,61836.0,61835.0,0.080921]
[1728482532203,0.552719,61836.0,61835.0,0.080921]
[1728482532704,0.080922,61834.0,61833.0,0.080921]
[1728482532897,0.380922,61834.0,61833.0,0.080921]
[1728482533100,0.3,61834.0,61833.0,0.080921]
[1728482534614,0.301,61834.0,61833.0,0.080921]
[1728482535597,0.301,61834.0,61833.0,0.082921]
[1728482538101,0.381922,61834.0,61833.0,0.082921]
[1728482539102,0.301,61834.0,61833.0,0.082921]
[1728482539643,0.381922,61834.0,61833.0,0.082921]
[1728482541207,0.301,61834.0,61833.0,0.082921]
[1728482541743,0.381922,61834.0,61833.0,0.082921]
[1728482542031,1.74696,61834.0,61823.0,0.0038]
[1728482542208,0.080936,61823.0,61821.0,0.00242636]
[1728482542414,0.080936,61823.0,61812.0,0.0038]
[1728482542415,0.190936,61823.0,61813.0,0.080949]
[1728482542708,0.080943,61818.0,61817.0,0.080943]
[1728482542902,0.551743,61818.0,61817.0,0.080943]
[1728482543402,0.551743,61818.0,61810.0,0.01619]
[1728482543403,0.080947,61815.0,61811.0,0.01141673]
[1728482543604,0.11,61815.0,61814.0,0.080948]
[1728482544400,0.080952,61812.0,61811.0,0.080952]
[1728482544601,0.631747,61816.0,61815.0,0.080947]
[1728482544802,0.741747,61816.0,61815.0,0.080947]
[1728482545041,0.4708,61816.0,61815.0,0.270947]
[1728482545810,0.11,61816.0,61815.0,0.270947]
[1728482546015,0.11,61816.0,61815.0,0.080947]
[1728482546210,0.11,61816.0,61815.0,0.13091855]
[1728482546506,0.11,61816.0,61815.0,0.272947]
[1728482546712,0.001,61818.0,61817.0,0.080944]
[1728482547007,0.3608,61822.0,61821.0,0.080939]
[1728482547204,0.4808,61822.0,61821.0,0.080939]
[1728482547403,0.561738,61822.0,61821.0,0.080939]
[1728482548430,0.565738,61822.0,61821.0,0.080939]
[1728482548906,0.4848,61822.0,61821.0,0.080939]
[1728482549520,0.124,61822.0,61821.0,0.080939]
[1728482549706,0.004,61822.0,61821.0,0.080939]
[1728482550110,0.004,61822.0,61821.0,1.166219]
[1728482550310,0.3608,61827.0,61821.0,1.166219]
[1728482550507,0.00242698,61828.0,61827.0,0.080931]
[1728482552106,0.00242698,61828.0,61827.0,0.270931]
[1728482552309,0.00542698,61828.0,61827.0,0.270931]
[1728482553311,0.00642698,61828.0,61827.0,0.270931]
[1728482555411,0.12642698,61828.0,61827.0,0.270931]
[1728482555605,0.12342698,61828.0,61827.0,0.270931]
[1728482555807,0.12442698,61828.0,61827.0,0.279931]
[1728482556003,0.12442698,61828.0,61827.0,0.54592297]
[1728482556311,0.00342698,61828.0,61827.0,0.53792297]
[1728482556698,0.00242698,61828.0,61827.0,0.53792297]
[1728482556905,0.00242698,61828.0,61827.0,0.53692297]
[1728482557106,0.00342698,61828.0,61827.0,0.54592297]
[1728482557606,0.01242698,61828.0,61827.0,0.53792297]
[1728482558003,0.01242698,61828.0,61827.0,0.271931]
[1728482558903,0.00942698,61828.0,61827.0,0.271931]
[1728482559105,0.00242698,61828.0,61827.0,0.270931]
[1728482559305,0.00242698,61828.0,61827.0,0.271931]
[1728482559811,0.00242698,61828.0,61827.0,0.270931]
[1728482560006,0.00642698,61828.0,61827.0,0.270931]
[1728482560511,0.00242698,61828.0,61827.0,0.271931]
[1728482560909,0.3608,61835.0,61834.0,0.080922]
[1728482561124,0.4808,61835.0,61834.0,0.270922]
[1728482562200,0.4818,61835.0,61834.0,0.080922]
[1728482563213,0.562721,61835.0,61834.0,0.080922]
[1728482563811,0.561721,61835.0,61834.0,0.080922]
[1728482564015,0.562721,61835.0,61834.0,0.080922]
[1728482564211,0.562721,61835.0,61834.0,0.086922]
[1728482564212,0.563721,61835.0,61834.0,0.086922]
[1728482565014,0.563721,61835.0,61834.0,0.006]
[1728482565211,0.080932,61830.0,61829.0,0.080928]